bitfinex/quotes_ETHUSD_20250318
["timestamp","ask_amount","ask_price","bid_price","bid_amount"]
[1742322320147,2.76741681,1886.5,1886.4,5.30098]
[1742322320375,23.10430037,1886.6,1886.5,5.30082]
[1742322320886,23.10430037,1886.6,1886.5,6.12012]
[1742322321702,25.87171718,1886.6,1886.5,6.12012]
[1742322321836,25.87171718,1886.6,1886.5,5.30082]
[1742322322241,25.87171718,1886.6,1886.4,10.6018]
[1742322322473,25.87171718,1886.6,1886.5,5.30082]
[1742322323088,25.87171718,1886.6,1886.4,10.60181]
[1742322323295,25.87171718,1886.6,1886.5,5.30082]
[1742322325310,0.7965,1887.0,1886.9,5.29969]
[1742322325515,0.3931503,1887.1,1887.0,5.29941]
[1742322325819,21.06661681,1887.2,1887.0,5.29941]
[1742322325972,20.30941681,1887.2,1887.1,5.29913]
[1742322326173,17.94220148,1887.2,1887.1,5.29913]
[1742322326426,0.8324,1887.6,1887.5,5.2979]
[1742322326574,5.9954,1887.6,1887.5,5.2979]
[1742322327707,5.163,1887.6,1887.5,5.2979]
[1742322328291,18.63382541,1887.8,1887.6,10.59515]
[1742322328482,19.03275097,1887.8,1887.7,5.29745]
[1742322328677,23.10392556,1887.8,1887.7,5.29745]
[1742322329315,20.70834237,1887.8,1887.7,5.29745]
[1742322330077,0.8075,1888.2,1887.7,3.7837]
[1742322330333,5.162,1888.2,1888.0,5.29657]
[1742322330626,5.55478517,1888.2,1888.0,5.29657]
[1742322331032,5.55478517,1888.2,1888.0,5.29649]
[1742322331194,5.55478517,1888.2,1888.1,5.29632]
[1742322331383,5.55478517,1888.2,1888.0,5.29647]
[1742322331384,8.32220198,1888.2,1888.0,5.29647]
[1742322331816,8.32220198,1888.2,1888.0,5.29641]
[1742322331997,8.32220198,1888.2,1888.1,5.29632]
[1742322335909,8.32220198,1888.2,1888.0,5.29641]
[1742322336214,8.32220198,1888.2,1888.1,5.29632]
[1742322337019,3.16020198,1888.2,1888.1,6.355593]
[1742322337187,2.76741681,1888.2,1888.1,9.355593]
[1742322337890,3.17546864,1888.2,1888.1,9.355593]
[1742322338218,2.76741681,1888.2,1888.1,8.29632]
[1742322347802,2.76741681,1888.2,1888.1,9.07462]
[1742322355334,2.76741681,1888.2,1888.1,8.29632]
[1742322355740,3.55861681,1888.2,1888.1,3.0]
[1742322356053,5.29635,1888.1,1887.8,11.43707]
[1742322356209,5.29635,1888.1,1887.9,5.29689]
[1742322356210,2.76741681,1888.0,1887.9,5.29689]
[1742322358439,2.76741681,1888.0,1887.9,8.29689]
[1742322359315,5.55200312,1888.4,1888.3,5.29576]
[1742322359515,8.31941993,1888.4,1888.3,5.29576]
[1742322359949,3.16241993,1888.4,1888.3,5.29576]
[1742322365444,3.22861766,1888.4,1888.3,5.29576]
[1742322366446,3.22861765,1888.4,1888.3,5.29576]
[1742322368049,3.16241993,1888.4,1888.3,5.29576]
[1742322370774,18.2884,1888.8,1888.3,4.881569]
[1742322371074,18.2884,1888.8,1888.7,5.29464]
[1742322371223,23.4444,1888.8,1888.7,5.29464]
[1742322371423,2.8691,1888.7,1888.5,10.5902]
[1742322371634,0.06619029,1888.7,1888.5,10.5902]
[1742322371933,0.7915,1888.6,1888.3,5.29555]
[1742322372127,2.76741681,1888.4,1888.3,5.29555]
[1742322372339,7.92341681,1888.4,1888.2,5.29599]
[1742322372540,7.92341681,1888.4,1888.2,10.59188]
[1742322372733,0.7915,1888.3,1888.1,5.29631]
[1742322373057,2.76741681,1888.2,1888.1,8.29631]
[1742322373270,0.8154,1887.7,1887.4,5.29812]
[1742322373558,0.8154,1887.7,1887.5,5.29792]
[1742322373559,5.156,1887.6,1887.5,5.29792]
[1742322373721,5.156,1887.6,1887.4,10.5963]
[1742322373921,2.83364509,1887.5,1887.2,5.29876]
[1742322374126,10.45373,1887.6,1887.3,5.29854]
[1742322374437,2.76741681,1887.4,1887.3,5.29854]
[1742322377082,2.76741681,1887.4,1887.3,6.06514]
[1742322377282,2.76741681,1887.4,1887.3,9.06514]
[1742322377562,2.76741681,1887.5,1887.4,8.29829]
[1742322380425,2.76741681,1887.7,1887.6,5.29773]
[1742322380625,2.76741681,1887.9,1887.8,5.29717]
[1742322382665,3.59921681,1888.0,1887.9,5.29689]
[1742322383157,6.36663362,1888.0,1887.8,10.59417]
[1742322383563,6.36663362,1888.0,1887.9,5.29689]
[1742322383870,3.59921681,1888.0,1887.9,5.29689]
[1742322384232,2.76741681,1888.0,1887.9,5.29689]
[1742322387954,5.53483362,1888.0,1887.9,5.29689]
[1742322388150,6.13380356,1888.0,1887.9,5.29689]
[1742322388354,2.76741681,1888.0,1887.9,5.29689]
[1742322390680,2.956392,1887.9,1887.8,5.297]
[1742322390856,6.29573362,1888.0,1887.8,5.297]
[1742322391177,0.06621321,1887.9,1887.6,5.29763]
[1742322391377,2.76741681,1887.8,1887.6,5.29763]
[1742322391565,7.92341681,1887.8,1887.6,5.29763]
[1742322391951,13.22064681,1887.8,1887.5,5.29796]
[1742322392156,2.76741681,1887.6,1887.5,5.29796]
[1742322392367,2.76741681,1887.6,1887.4,5.29824]
[1742322392567,2.76741681,1887.5,1887.4,5.29824]
[1742322394266,0.794,1887.9,1887.6,5.29763]
[1742322394578,2.76741681,1887.7,1887.6,5.29763]
[1742322402286,2.76741681,1887.7,1887.6,6.10703]
[1742322404558,2.76741681,1887.7,1887.6,5.29763]
[1742322405460,3.51951681,1887.7,1887.5,10.59576]
[1742322405656,3.51951681,1887.7,1887.5,5.29787]
[1742322405880,3.51951681,1887.7,1887.5,3.0]
[1742322406208,3.51951681,1887.7,1887.5,8.29794]
[1742322406373,0.35195168,1887.6,1887.5,8.29794]
[1742322406703,0.40618091,1887.6,1887.5,8.29794]
[1742322406860,3.51951681,1887.7,1887.6,5.29773]
[1742322407193,2.76741681,1887.7,1887.6,5.29773]
[1742322407406,2.76741681,1887.7,1887.6,6.12853]
[1742322407762,2.76741681,1887.7,1887.6,5.29773]
[1742322408800,2.76741681,1887.7,1887.6,8.29773]
[1742322413981,3.86115849,1887.7,1887.5,5.29789]
[1742322414186,3.86115849,1887.7,1887.5,8.29789]
[1742322415009,3.92738471,1887.7,1887.5,8.29789]
[1742322415210,3.86115849,1887.7,1887.5,8.29789]
[1742322416729,0.38611585,1887.6,1887.5,8.29799]
[1742322417285,0.38611585,1887.6,1887.2,5.29878]
[1742322417286,0.8003,1887.4,1887.3,8.29852]
[1742322417512,5.9563,1887.4,1887.2,5.29885]
[1742322417715,2.76741681,1887.3,1887.2,5.29885]
[1742322417880,2.76741681,1887.3,1887.2,8.29885]
[1742322418409,2.76741681,1887.3,1887.2,3.0]
[1742322418410,5.60106993,1887.3,1887.2,3.0]
[1742322418591,5.60107112,1887.3,1887.2,3.0]
[1742322418786,5.53483362,1887.3,1887.2,3.0]
[1742322419004,5.53483362,1887.3,1887.2,8.29885]
[1742322419596,2.76741681,1887.3,1887.2,8.29885]
[1742322423910,3.55771681,1887.3,1887.2,8.29885]
[1742322426024,2.76741681,1887.3,1887.2,8.29885]
[1742322439817,13.59786,1887.1,1886.8,5.29981]
[1742322440023,2.76741681,1886.9,1886.8,5.29981]
[1742322440220,2.83366449,1886.9,1886.8,8.29981]
[1742322440416,3.58341681,1886.9,1886.8,3.0]
[1742322440612,3.9894901,1886.9,1886.8,5.29997]
[1742322440942,4.05574118,1886.9,1886.7,5.3001]
[1742322441249,9.2892001,1886.9,1886.6,5.30044]
[1742322441443,2.76741681,1886.7,1886.6,10.60085]
[1742322441647,2.76741681,1886.7,1886.6,5.30041]
[1742322442346,2.76741681,1886.7,1886.6,6.10241]
[1742322444118,3.04415849,1886.7,1886.6,5.30041]
[1742322444318,3.04415849,1886.7,1886.5,10.60136]
[1742322444518,3.04415849,1886.7,1886.6,5.30054]
[1742322444739,8.20015849,1886.7,1886.6,5.30054]
[1742322445118,8.20015849,1886.7,1886.5,5.30066]
[1742322445318,7.92341681,1886.7,1886.5,5.30066]
[1742322446846,7.92341681,1886.7,1886.6,5.30054]
[1742322447244,7.92341681,1886.7,1886.5,5.30066]
[1742322447446,7.92341681,1886.7,1886.4,5.30094]
[1742322447645,3.52891681,1886.5,1886.4,8.30094]
[1742322448663,3.52891681,1886.5,1886.4,5.30094]
[1742322449370,3.88843488,1886.5,1886.4,5.30094]
[1742322449983,3.88843488,1886.5,1886.2,5.30156]
[1742322449984,6.65585169,1886.5,1886.2,5.30156]
[1742322450271,2.76741681,1886.3,1886.2,5.30156]
[1742322450484,7.92441681,1886.3,1886.2,5.30156]
[1742322450970,7.92441681,1886.3,1885.9,5.30226]
[1742322451168,2.76741681,1886.1,1886.0,5.30211]
[1742322452839,3.16849272,1886.1,1886.0,5.30211]
[1742322453888,2.76741681,1886.1,1886.0,5.30211]
[1742322455898,3.17408343,1886.1,1886.0,5.30211]
[1742322456885,3.49149177,1886.1,1886.0,5.30211]
[1742322461649,3.17408343,1886.1,1886.0,5.30211]
[1742322462375,3.93588343,1886.1,1885.9,5.30226]
[1742322463083,3.93588343,1886.1,1885.9,10.60464]
[1742322463450,3.93588343,1886.1,1886.0,5.30222]
[1742322465288,3.93588343,1886.1,1885.9,10.60466]
[1742322467487,10.60466,1885.9,1885.5,5.30348]
[1742322467785,0.55,1886.0,1885.6,5.30335]
[1742322467786,2.76741681,1885.7,1885.6,5.30335]
[1742322469854,2.76741681,1885.7,1885.6,9.07995]
[1742322470890,0.40666662,1886.1,1886.0,5.30222]
[1742322471096,7.92541681,1886.1,1886.0,5.30222]
[1742322473304,8.32634766,1886.1,1886.0,5.30222]
[1742322481604,8.32634766,1886.1,1885.9,5.30238]
[1742322481811,0.775,1886.0,1885.8,5.30267]
[1742322481969,2.76741681,1885.9,1885.8,5.30267]
[1742322483574,2.76741681,1885.9,1885.7,5.30302]
[1742322483906,0.8109,1885.8,1885.6,5.30328]
[1742322484100,10.69283362,1885.7,1885.4,10.60756]
[1742322484308,2.76741681,1885.5,1885.4,5.30371]
[1742322484466,2.76741681,1885.5,1885.4,8.30371]
[1742322485269,8.30371,1885.4,1885.2,5.30438]
[1742322485612,7.92541681,1885.3,1885.2,10.60876]
[1742322488140,7.92541681,1885.3,1885.2,11.37276]
[1742322489337,7.92541681,1885.3,1885.2,10.60876]
[1742322491745,4.762722,1885.2,1885.1,5.30474]
[1742322491953,2.83373041,1885.2,1885.0,10.60992]
[1742322492137,2.76741681,1885.2,1885.1,5.30475]
[1742322492735,2.76741681,1885.2,1884.9,5.30509]
[1742322493040,2.76741681,1885.0,1884.9,5.30532]
[1742322494118,2.76741681,1885.0,1884.9,6.05602]
[1742322496231,2.76741681,1885.0,1884.9,5.30532]
[1742322496429,2.76741681,1885.0,1884.8,5.3056]
[1742322496430,3.87045849,1885.0,1884.8,5.3056]
[1742322496748,5.158,1884.9,1884.8,5.3056]
[1742322496950,7.99173975,1884.9,1884.7,10.61166]
[1742322497152,2.8337415,1884.8,1884.7,5.30579]
[1742322497454,2.76741681,1884.8,1884.7,10.61152]
[1742322497642,2.76741681,1884.8,1884.7,5.30573]
[1742322498028,7.92541681,1884.9,1884.7,10.6114]
[1742322498230,7.92541681,1884.9,1884.8,5.3056]
[1742322499039,8.32489901,1884.9,1884.8,5.3056]
[1742322499758,11.09231582,1884.9,1884.8,5.3056]
[1742322500956,11.09231582,1884.9,1884.7,5.30567]
[1742322501156,10.61181,1884.6,1884.5,8.30635]
[1742322501362,3.58731681,1884.7,1884.5,8.3063]
[1742322501541,3.94604849,1884.7,1884.5,13.61262]
[1742322501736,3.94604849,1884.7,1884.5,5.3063]
[1742322502562,2.76741681,1884.7,1884.6,5.30616]
[1742322502788,7.92641681,1884.7,1884.6,5.30616]
[1742322502953,5.159,1884.7,1884.6,5.30616]
[1742322503890,7.92641681,1884.7,1884.6,5.30616]
[1742322505156,7.92641681,1884.7,1884.6,5.35959847]
[1742322505904,5.159,1884.7,1884.6,5.35959847]
[1742322509159,5.9143,1884.7,1884.6,0.05343847]
[1742322509555,6.53049874,1884.7,1884.6,0.05343847]
[1742322509768,11.83637874,1884.7,1884.6,0.05343847]
[1742322509985,0.7866,1884.6,1884.3,5.30688]
[1742322510179,2.76741681,1884.4,1884.3,5.30688]
[1742322515098,5.30688,1884.3,1884.1,5.30754]
[1742322515302,7.92641681,1884.2,1884.1,5.30754]
[1742322515801,7.92641681,1884.2,1884.0,5.30774]
[1742322515802,0.8276,1884.1,1884.0,5.30774]
[1742322516099,1.23259001,1884.1,1884.0,5.30774]
[1742322516401,1.23259001,1884.1,1884.0,5.30785]
[1742322516704,0.40499001,1884.1,1884.0,5.30785]
[1742322516868,7.92641681,1884.2,1884.1,5.30757]
[1742322517720,7.92641681,1884.2,1884.0,5.30785]
[1742322518717,7.92641681,1884.2,1884.0,5.30774]
[1742322519619,0.06619874,1884.1,1884.0,5.30774]
[1742322520118,9.403175,1883.9,1883.8,5.30833]
[1742322520278,2.76741681,1884.0,1883.8,5.30833]
[1742322520476,0.55,1883.9,1883.7,5.30859]
[1742322520816,0.55,1883.9,1883.6,0.11257]
[1742322520817,8.70581681,1883.8,1883.6,10.73028]
[1742322521018,7.92741681,1883.8,1883.7,5.3087]
[1742322521219,8.32605008,1883.8,1883.7,5.3087]
[1742322522084,8.32605008,1883.8,1883.6,5.42142]
[1742322522085,9.11025008,1883.8,1883.6,0.11257]
[1742322522721,0.55,1883.7,1883.6,0.11257]
[1742322522920,1.3342,1883.7,1883.6,0.11257]
[1742322523128,6.6429,1883.7,1883.6,0.11257]
[1742322523332,0.55,1883.5,1883.1,5.31029]
[1742322523641,2.76741681,1883.2,1883.1,5.31029]
[1742322524494,6.29693362,1883.2,1883.0,8.31064]
[1742322524823,6.29693362,1883.2,1883.0,8.31049]
[1742322525024,6.92662698,1883.2,1883.1,5.31039]
[1742322525623,6.92662698,1883.2,1882.7,6.10447]
[1742322525624,9.813648,1883.0,1882.9,5.31093]
[1742322525824,7.92841681,1883.0,1882.9,5.31093]
[1742322527316,7.92841681,1883.0,1882.8,5.31122]
[1742322527830,7.92841681,1883.0,1882.9,5.31095]
[1742322527995,8.47253109,1883.0,1882.9,5.31095]
[1742322528329,8.47253109,1883.0,1882.8,5.31104]
[1742322528720,8.47253109,1883.0,1882.9,5.31095]
[1742322529122,7.92841681,1883.0,1882.9,5.31095]
[1742322530526,8.33590825,1883.0,1882.9,5.31095]
[1742322530932,8.33590825,1883.0,1882.5,0.8224]
[1742322531133,2.76741681,1882.6,1882.5,0.8224]
[1742322531322,7.92941681,1882.6,1882.5,0.8224]
[1742322531627,7.92941681,1882.6,1882.5,6.13448]
[1742322532517,5.162,1882.6,1882.5,6.13448]
[1742322532718,7.92941681,1882.6,1882.5,6.13448]
[1742322533444,7.92941681,1882.6,1882.5,9.13448]
[1742322534934,5.163,1882.7,1882.6,5.3118]
[1742322535515,5.163,1882.7,1882.6,8.3621076]
[1742322535711,0.40749144,1883.0,1882.6,8.3621076]
[1742322535712,22.734,1883.1,1883.0,5.31067]
[1742322535922,25.50141681,1883.1,1883.0,5.36262557]
[1742322536523,25.90730922,1883.1,1883.0,5.36262557]
[1742322536727,25.90730922,1883.1,1883.0,0.05195557]
[1742322537116,25.90730922,1883.1,1883.0,5.36262557]
[1742322540511,25.90730922,1883.1,1883.0,0.05195557]
[1742322540911,26.69670922,1883.1,1882.8,10.62225]
[1742322541208,2.76741681,1882.9,1882.8,10.62223]
[1742322541846,2.76741681,1882.9,1882.8,5.31109]
[1742322545047,2.76741681,1882.9,1882.8,6.11599]
[1742322546050,2.76741681,1882.9,1882.8,5.31109]
[1742322546710,3.04415849,1882.9,1882.8,5.31109]
[1742322547342,3.04415849,1882.9,1882.5,5.31203]
[1742322547343,0.8044,1882.8,1882.5,5.31203]
[1742322547544,2.76741681,1882.6,1882.3,5.3125]
[1742322547743,5.163,1882.7,1882.4,10.62441]
[1742322548044,0.5163,1882.6,1882.5,5.31208]
[1742322548629,3.28371681,1882.6,1882.5,5.31208]
[1742322548829,2.76741681,1882.6,1882.5,5.31208]
[1742322549546,7.93041681,1882.6,1882.5,5.31208]
[1742322549949,8.33754161,1882.6,1882.5,5.31208]
[1742322552058,7.93041681,1882.6,1882.5,5.31208]
[1742322554475,8.32279593,1882.6,1882.5,5.31208]
[1742322555329,5.55537912,1882.6,1882.5,5.31208]
[1742322555636,8.32279593,1882.6,1882.5,5.31208]
[1742322556049,7.93041681,1882.6,1882.5,5.31208]
[1742322557133,5.163,1882.6,1882.5,5.31208]
[1742322557526,2.76741681,1882.7,1882.6,5.3118]
[1742322557721,7.93041681,1882.7,1882.6,5.3118]
[1742322558123,2.76741681,1882.7,1882.6,6.138]
[1742322558326,2.76741681,1882.7,1882.6,9.138]
[1742322559682,2.76741681,1882.7,1882.6,8.3118]
[1742322561780,3.57201681,1882.7,1882.5,5.31208]
[1742322562119,3.57201681,1882.7,1882.5,5.31196]
[1742322562279,2.64875,1882.5,1882.4,6.14]
[1742322562475,3.59141681,1882.5,1882.4,11.45236]
[1742322562637,3.95055849,1882.5,1882.4,11.45236]
[1742322564053,3.95055849,1882.5,1882.4,5.31236]
[1742322565553,3.95055849,1882.5,1882.3,5.31247]
[1742322565737,5.163,1882.4,1882.3,5.31247]
[1742322567459,7.93041681,1882.4,1882.3,5.31247]
[1742322569209,11.43088,1882.2,1882.0,5.31338]
[1742322569376,8.68611681,1882.4,1882.1,5.31321]
[1742322570196,2.76741681,1882.2,1881.8,0.8152]
[1742322570381,3.04415849,1882.2,1882.1,5.31321]
[1742322571318,0.40122272,1882.6,1882.2,0.8229]
[1742322571606,0.40122272,1882.6,1882.2,5.31283]
[1742322571607,5.163,1882.5,1882.2,5.31283]
[1742322571761,1.3378,1882.4,1882.1,8.31311]
[1742322571962,1.3378,1882.4,1882.2,5.31282]
[1742322572373,1.3378,1882.4,1882.1,8.31306]
[1742322572708,0.7878,1882.1,1881.9,10.62737]
[1742322572890,7.93041681,1882.0,1881.9,10.62737]
[1742322574174,0.7878,1882.3,1882.1,5.31304]
[1742322574374,7.93041681,1882.2,1882.1,5.31304]
[1742322574602,8.32273851,1882.2,1882.1,5.31304]
[1742322580516,3.15973851,1882.2,1882.1,5.31304]
[1742322580696,8.32273851,1882.2,1882.1,5.31304]
[1742322584725,8.32273851,1882.2,1882.0,5.31338]
[1742322584726,9.12903851,1882.2,1882.0,5.31333]
[1742322584907,9.12903851,1882.2,1881.9,5.31363]
[1742322585078,2.76741681,1882.0,1881.9,5.31363]
[1742322588432,7.93141681,1882.0,1881.9,5.31363]
[1742322603531,7.93141681,1882.0,1881.8,5.31394]
[1742322603704,0.06619874,1881.9,1881.8,5.31394]
[1742322603907,0.7958,1881.9,1881.7,5.4268555]
[1742322604119,2.76741681,1881.8,1881.7,5.4267955]
[1742322610612,8.73121681,1881.8,1881.7,5.4267955]
[1742322611462,8.73121681,1881.8,1881.7,0.1125755]
[1742322611812,2.76741681,1881.5,1881.4,5.31509]
[1742322612815,2.75424854,1881.5,1881.4,5.31509]
[1742322613052,3.16066193,1881.5,1881.4,5.31509]
[1742322615215,0.40641339,1881.5,1881.4,5.31509]
[1742322615416,2.76741681,1881.6,1881.5,5.3149]
[1742322615662,6.23068891,1881.8,1881.7,5.31411]
[1742322615663,2.76741681,1881.8,1881.7,5.31411]
[1742322615871,7.93041681,1881.8,1881.7,5.31411]
[1742322616763,0.39070369,1881.8,1881.7,5.31411]
[1742322617077,7.93041681,1881.8,1881.7,5.31411]
[1742322620951,0.7693,1882.0,1881.9,5.31377]
[1742322620952,2.76741681,1882.0,1881.9,5.31377]
[1742322621147,7.93041681,1882.0,1881.9,5.31377]
[1742322622357,7.93041681,1882.0,1881.8,10.62787]
[1742322622657,0.817,1881.9,1881.8,5.31391]
[1742322623114,1.21686246,1881.9,1881.8,5.31391]
[1742322623751,0.39986246,1881.9,1881.8,5.31391]
[1742322623950,7.93041681,1882.0,1881.9,5.31377]
[1742322626019,8.32935085,1882.0,1881.9,5.31377]
[1742322626219,8.32835085,1882.0,1881.9,5.31377]
[1742322626948,5.56093404,1882.0,1881.9,6.11297]
[1742322627177,18.3386,1882.3,1882.2,5.31293]
[1742322627178,20.35241681,1882.3,1882.2,5.31293]
[1742322627317,22.747,1882.3,1882.2,5.31293]
[1742322628855,23.14477481,1882.3,1882.2,5.31293]
[1742322631662,17.98277481,1882.3,1882.2,5.31293]
[1742322631961,23.14477481,1882.3,1882.2,6.11523]
[1742322633797,22.747,1882.3,1882.2,6.11523]
[1742322635099,3.17456982,1882.7,1882.6,5.3118]
[1742322635251,7.92841681,1882.7,1882.6,5.3118]
[1742322635456,7.92841681,1882.7,1882.6,8.3118]
[1742322635858,5.161,1882.7,1882.6,9.069]
[1742322636308,2.76741681,1882.9,1882.8,8.31123]
[1742322638167,2.76741681,1883.1,1883.0,5.31067]
[1742322638718,5.16,1883.2,1883.1,5.31039]
[1742322638923,5.16,1883.2,1883.1,6.11089]
[1742322639087,0.7884,1883.6,1883.4,5.30933]
[1742322639271,17.583,1883.7,1883.0,4.142332]
[1742322639272,17.583,1883.7,1883.6,5.30898]
[1742322639473,22.743,1883.7,1883.6,5.30898]
[1742322639671,22.743,1883.7,1883.5,11.41888]
[1742322639895,22.743,1883.7,1883.5,5.30912]
[1742322640111,5.915779,1883.4,1883.3,8.30972]
[1742322640302,2.76741681,1883.4,1883.2,3.0]
[1742322640501,2.76741681,1883.4,1883.3,5.30982]
[1742322644410,2.76741681,1883.5,1883.4,5.30943]
[1742322647410,0.39821983,1883.6,1883.5,5.30926]
[1742322647708,2.76741681,1883.7,1883.6,8.30898]
[1742322647913,5.158,1883.7,1883.6,8.30898]
[1742322648113,7.92541681,1883.7,1883.6,8.30898]
[1742322649524,0.40466605,1883.9,1883.8,5.30841]
[1742322649722,7.92441681,1883.9,1883.8,5.30841]
[1742322650592,17.574,1884.0,1883.9,5.30813]
[1742322650820,25.49841681,1884.0,1883.9,5.30813]
[1742322652533,25.89313893,1884.0,1883.9,5.30813]
[1742322652927,20.34141681,1884.0,1883.9,5.30813]
[1742322653125,20.34141681,1884.0,1883.9,9.369784]
[1742322653126,25.49841681,1884.0,1883.9,9.369784]
[1742322653423,2.76741681,1884.2,1884.1,5.30757]
[1742322654323,3.358689,1884.1,1884.0,8.30774]
[1742322654627,2.76741681,1884.1,1884.0,8.30774]
[1742322654997,3.17581663,1884.1,1884.0,8.30774]
[1742322658904,2.76741681,1884.1,1884.0,9.12084]
[1742322659103,2.76741681,1884.1,1884.0,10.563726]
[1742322659499,7.92241681,1884.2,1884.1,5.30757]
[1742322661258,7.92241681,1884.2,1884.0,9.750626]
[1742322661555,7.92241681,1884.2,1884.0,8.30767]
[1742322661751,7.92241681,1884.2,1884.0,13.61541]
[1742322662451,7.92241681,1884.2,1884.0,5.30767]
[1742322662648,7.92241681,1884.2,1883.9,5.30794]
[1742322662862,5.87107,1883.8,1883.6,5.30888]
[1742322663008,3.57031681,1884.0,1883.7,10.61708]
[1742322663210,5.154,1883.9,1883.7,10.61708]
[1742322663829,5.154,1883.9,1883.7,5.30849]
[1742322664473,5.154,1883.9,1883.7,10.61703]
[1742322665348,5.154,1883.9,1883.7,5.30849]
[1742322665563,8.07591681,1883.8,1883.4,5.30933]
[1742322665765,2.76741681,1883.5,1883.4,5.30933]
[1742322666078,5.154,1883.5,1883.4,8.30933]
[1742322666957,5.154,1883.5,1883.4,9.08513]
[1742322667328,7.92141681,1883.8,1883.7,6.1214]
[1742322667990,5.154,1883.9,1883.8,5.30841]
[1742322668288,0.39953631,1884.3,1884.2,5.30729]
[1742322668587,7.92141681,1884.3,1884.2,5.30729]
[1742322670369,7.92141681,1884.3,1884.1,5.30745]
[1742322670853,7.92141681,1884.3,1883.9,5.30799]
[1742322671068,5.30799,1883.9,1883.8,5.30825]
[1742322671404,5.154,1883.9,1883.6,5.30896]
[1742322671555,2.76741681,1883.7,1883.6,8.30884]
[1742322672293,5.154,1883.9,1883.8,5.30841]
[1742322673958,2.76741681,1884.0,1883.9,5.30813]
[1742322674159,7.92141681,1884.0,1883.9,5.30813]
[1742322675174,7.92141681,1884.0,1883.8,5.30832]
[1742322675175,5.30813,1883.9,1883.8,5.30832]
[1742322675379,10.68883362,1884.0,1883.8,10.61655]
[1742322675569,7.92141681,1884.0,1883.8,10.61655]
[1742322675764,7.92141681,1884.0,1883.9,5.30813]
[1742322676297,7.92141681,1884.0,1883.8,5.30823]
[1742322676596,0.7626,1883.9,1883.7,5.30864]
[1742322676763,2.76741681,1883.8,1883.7,5.30864]
[1742322678060,2.76741681,1883.8,1883.7,6.10674]
[1742322679198,0.768,1884.2,1883.9,10.61599]
[1742322679490,5.154,1884.1,1883.9,10.61599]
[1742322679696,5.154,1884.1,1884.0,5.30785]
[1742322679997,0.40350185,1884.3,1884.1,5.30757]
[1742322680163,24.19178,1884.4,1884.1,5.30757]
[1742322680164,5.154,1884.2,1884.1,5.30757]
[1742322680364,7.92141681,1884.2,1884.1,5.30757]
[1742322680898,2.76741681,1884.2,1884.1,5.30757]
[1742322681062,7.92141681,1884.2,1884.1,5.30757]
[1742322684711,7.92141681,1884.2,1884.1,6.369112]
[1742322685013,17.567,1884.4,1884.3,5.30701]
[1742322685212,25.48741681,1884.4,1884.3,5.30701]
[1742322686076,7.92041681,1884.5,1884.4,6.06222]
[1742322686413,7.92041681,1884.5,1884.4,7.199143]
[1742322687498,2.614587,1884.4,1884.3,5.30683]
[1742322687799,8.68891681,1884.5,1884.4,5.30672]
[1742322687990,7.92041681,1884.5,1884.4,5.30672]
[1742322688196,2.76741681,1884.5,1884.4,5.30672]
[1742322688380,8.32343226,1884.5,1884.4,5.30672]
[1742322688833,7.92041681,1884.5,1884.4,5.30672]
[1742322689838,2.76741681,1884.5,1884.4,5.30672]
[1742322689992,2.76741681,1884.5,1884.4,7.186875]
[1742322689993,7.91941681,1884.5,1884.4,7.186875]
[1742322690789,2.76741681,1884.5,1884.4,10.186875]
[1742322691124,2.76741681,1884.7,1884.6,8.30616]
[1742322691430,2.76741681,1884.7,1884.6,9.667412]
[1742322691912,2.76741681,1884.7,1884.6,10.438312]
[1742322692477,2.76741681,1884.9,1884.8,6.0765]
[1742322692683,7.91941681,1884.9,1884.8,6.0765]
[1742322692900,5.152,1884.9,1884.8,6.0765]
[1742322693110,0.8012,1885.4,1885.3,5.30419]
[1742322693413,8.72061681,1885.4,1885.3,5.30419]
[1742322694424,8.72061681,1885.4,1885.1,0.7709]
[1742322694425,2.316127,1885.3,1885.1,5.30472]
[1742322694591,2.76741681,1885.2,1885.1,5.30472]
[1742322694792,3.16353386,1885.2,1885.1,5.30472]
[1742322695919,3.16353386,1885.2,1884.9,8.30519]
[1742322696101,2.76741681,1885.0,1884.9,8.30519]
[1742322696423,7.91841681,1885.0,1884.9,8.30519]
[1742322699419,7.91841681,1885.0,1884.9,8.30519]
[1742322701733,16.78538362,1885.0,1884.6,5.30602]
[1742322701935,2.76741681,1884.7,1884.6,5.30602]
[1742322702136,3.56181681,1884.7,1884.5,5.30641]
[1742322702340,5.15,1884.6,1884.5,5.30641]
[1742322702633,5.15,1884.6,1884.4,10.61332]
[1742322702834,2.76741681,1884.5,1884.4,5.30663]
[1742322703634,2.76741681,1884.5,1884.4,8.30663]
[1742322704803,2.76741681,1884.5,1884.4,3.0]
[1742322705228,8.46837094,1884.5,1884.2,5.30724]
[1742322705429,2.76741681,1884.3,1884.2,5.30729]
[1742322706111,2.76741681,1884.3,1884.2,8.30729]
[1742322707926,3.54911681,1884.3,1884.2,3.0]
[1742322709135,8.85624681,1884.3,1883.9,5.30809]
[1742322709344,5.15,1884.2,1884.0,3.0]
[1742322709543,5.53483362,1884.1,1884.0,3.0]
[1742322709842,2.76741681,1884.1,1884.0,3.0]
[1742322711245,2.76741681,1884.1,1884.0,8.30785]
[1742322712013,2.76741681,1884.1,1884.0,3.0]
[1742322712211,8.30798,1883.9,1883.7,5.30859]
[1742322712408,7.91741681,1883.8,1883.6,5.30889]
[1742322712733,7.91741681,1883.8,1883.5,5.30903]
[1742322712932,2.76741681,1883.6,1883.5,5.30903]
[1742322713129,2.76741681,1883.6,1883.4,6.0731]
[1742322713336,2.76741681,1883.6,1883.4,5.3095]
[1742322715153,8.42943849,1883.6,1883.2,5.30984]
[1742322715316,2.76741681,1883.4,1883.2,5.30984]
[1742322715513,5.151,1883.3,1883.0,6.09749]
[1742322715714,2.76741681,1883.1,1883.0,5.31039]
[1742322715934,2.76741681,1883.1,1883.0,8.31039]
[1742322716325,2.76741681,1883.1,1883.0,9.672523]